bitfinex/quotes_SOLUSD_20250604
["timestamp","ask_amount","ask_price","bid_price","bid_amount"]
[1749060769318,16.10388449,155.96,155.91,15.71878449]
[1749060770020,15.71878449,155.95,155.91,15.71878449]
[1749060770189,0.3851,155.96,155.89,15.71878449]
[1749060770190,15.71878449,155.93,155.89,15.71878449]
[1749060770490,15.71878449,155.92,155.88,15.71878449]
[1749060770912,15.71878449,155.93,155.88,15.71878449]
[1749060771115,180.993,155.96,155.9,15.71878449]
[1749060771324,15.71878449,155.95,155.9,15.71878449]
[1749060771527,15.71878449,155.94,155.9,15.71878449]
[1749060773404,15.71878449,155.94,155.89,15.71878449]
[1749060773729,15.71878449,155.93,155.89,15.71878449]
[1749060773915,15.71878449,155.93,155.88,15.71878449]
[1749060778200,15.71878449,155.93,155.87,18.64964886]
[1749060778396,15.71878449,155.93,155.89,15.71878449]
[1749060780116,15.71878449,155.94,155.89,15.71878449]
[1749060780429,15.71878449,155.94,155.9,15.71878449]
[1749060781113,180.993,155.96,155.87,18.64964886]
[1749060781314,15.71878449,155.95,155.91,15.71878449]
[1749060781518,15.71878449,155.94,155.9,15.71878449]
[1749060781821,15.71878449,155.95,155.9,15.71878449]
[1749060782533,15.71878449,155.95,155.91,15.71878449]
[1749060783432,148.4851,155.96,155.92,15.71878449]
[1749060783631,148.4851,155.96,155.93,15.71878449]
[1749060783841,0.3851,155.96,155.93,15.71878449]
[1749060784211,0.3851,155.96,155.94,15.71878449]
[1749060787224,0.3851,155.96,155.95,15.71878449]
[1749060789432,0.3851,155.96,155.94,15.71878449]
[1749060805348,0.3851,155.96,155.95,15.71878449]
[1749060806147,0.3851,155.96,155.95,34.79491806]
[1749060806818,0.3851,155.96,155.95,34.36843335]
[1749060810030,0.3851,155.96,155.95,34.65275649]
[1749060811144,0.3851,155.96,155.95,34.79491806]
[1749060811729,0.3851,155.96,155.95,34.93707963]
[1749060812153,0.3851,155.96,155.95,35.01707963]
[1749060817356,0.3851,155.96,155.95,34.93707963]
[1749060819155,165.37898449,156.06,155.99,44.79181043]
[1749060819457,165.37898449,156.06,156.02,15.71878449]
[1749060825259,148.1,156.06,156.04,10.07829376]
[1749060825455,16.33119376,156.07,156.02,10.07829376]
[1749060825755,10.07829376,156.06,156.02,10.07829376]
[1749060826355,10.07829376,156.03,155.99,36.07829376]
[1749060827159,10.07829376,156.04,156.0,10.07829376]
[1749060829146,15.75313318,156.04,156.0,15.75313318]
[1749060832863,1.639,156.06,156.01,15.75313318]
[1749060832864,15.75313318,156.05,156.01,15.75313318]
[1749060833447,1.639,156.06,155.99,26.0]
[1749060833448,1.639,156.06,156.03,15.75313318]
[1749060833658,189.85313318,156.09,156.05,15.75313318]
[1749060833970,1.5296,156.1,156.06,15.75313318]
[1749060834177,17.28273318,156.1,156.06,15.75313318]
[1749060834845,17.28273318,156.1,156.05,15.75313318]
[1749060835146,17.28273318,156.1,156.06,0.08]
[1749060837868,1.5296,156.1,156.06,15.83313318]
[1749060838054,1.5296,156.1,156.06,15.75313318]
[1749060838464,17.28273318,156.1,156.06,15.75313318]
[1749060841857,17.28273318,156.1,156.05,15.75313318]
[1749060842977,17.28273318,156.1,156.06,15.75313318]
[1749060846872,15.75313318,156.09,156.03,18.64964886]
[1749060847181,15.75313318,156.09,156.05,15.75313318]
[1749060847383,15.75313318,156.07,156.01,26.0]
[1749060847677,15.75313318,156.04,156.0,26.0]
[1749060848055,15.75313318,156.04,155.99,18.79181043]
[1749060848377,15.75313318,156.04,155.99,18.64964886]
[1749060848580,15.75313318,156.04,155.99,34.40278204]
[1749060850984,15.75313318,156.03,155.99,34.40278204]
[1749060852287,15.75313318,156.02,155.98,15.75313318]
[1749060854464,15.75313318,156.03,155.99,15.75313318]
[1749060854979,15.75313318,156.03,155.97,18.933972]
[1749060855156,15.75313318,156.03,155.99,15.75313318]
[1749060855579,26.0,156.03,155.99,15.75313318]
[1749060855882,41.75313318,156.03,155.99,15.75313318]
[1749060856184,41.75313318,156.03,156.0,0.08]
[1749060856687,26.0,156.03,156.0,0.08]
[1749060856868,41.75313318,156.03,156.0,0.08]
[1749060859585,15.75313318,156.03,156.0,0.08]
[1749060863311,10.0824513,156.03,156.0,0.08]
[1749060868798,6.6591,156.06,156.0,0.08]
[1749060868799,10.0824513,156.02,156.0,0.08]
[1749060868990,10.0824513,156.01,156.0,0.08]
[1749060869783,10.0824513,156.01,155.97,10.0824513]
[1749060870294,10.0824513,156.01,155.96,28.73210016]
[1749060871170,10.0824513,156.02,155.97,10.0824513]
[1749060871873,10.0824513,156.02,155.98,10.0824513]
[1749060873779,10.0824513,156.02,155.97,10.0824513]
[1749060876979,148.1,156.05,155.99,10.0824513]
[1749060877292,10.0824513,156.04,155.99,10.0824513]
[1749060877498,10.0824513,156.03,155.99,10.0824513]
[1749060884613,10.0824513,156.03,156.0,0.08]
[1749060889801,10.0824513,156.03,155.99,10.0824513]
[1749060892402,10.0824513,156.04,155.99,10.0824513]
[1749060892798,10.0824513,156.03,155.98,10.0824513]
[1749060896727,10.0824513,156.02,155.98,10.0824513]
[1749060897113,10.0824513,156.01,155.96,18.79181043]
[1749060897446,10.0824513,156.0,155.96,28.87426173]
[1749060898118,10.0824513,156.01,155.96,28.87426173]
[1749060898512,10.0824513,156.01,155.97,10.0824513]
[1749060898925,10.0824513,156.02,155.97,10.0824513]
[1749060900053,36.0824513,156.02,155.98,10.0824513]
[1749060901111,148.1,156.05,155.98,10.0824513]
[1749060901112,10.0824513,156.03,155.98,10.0824513]
[1749060901830,148.1,156.05,156.0,10.0824513]
[1749060902139,4.60451326,156.07,156.03,10.0824513]
[1749060902140,10.0824513,156.07,156.03,10.0824513]
[1749060902519,10.0824513,156.07,156.02,10.0824513]
[1749060902719,10.0824513,156.07,156.0,18.79181043]
[1749060902720,10.0824513,156.07,156.03,10.0824513]
[1749060903340,11.6205513,156.08,156.04,10.0824513]
[1749060903655,36.0824513,156.09,156.05,10.0824513]
[1749060903933,26.0,156.09,156.05,10.0824513]
[1749060904106,158.1824513,156.1,156.05,10.0824513]
[1749060904712,10.0824513,156.09,156.04,10.0824513]
[1749060905016,10.0824513,156.06,156.01,28.73210016]
[1749060905217,15.7487763,156.06,156.01,34.39842516]
[1749060906218,15.7487763,156.04,156.0,41.7487763]
[1749060906626,15.7487763,156.03,155.99,34.39842516]
[1749060907108,15.7487763,156.04,155.99,34.39842516]
[1749060907626,15.7487763,156.04,156.0,15.7487763]
[1749060908351,26.0,156.08,156.0,15.7487763]
[1749060908510,15.7487763,156.05,156.0,15.7487763]
[1749060909925,15.7487763,156.04,156.0,15.7487763]
[1749060911255,15.7487763,156.04,155.99,15.7487763]
[1749060913531,15.7487763,156.0,155.97,18.64964886]
[1749060913945,15.7487763,156.01,155.97,15.7487763]
[1749060914130,15.7487763,156.02,155.97,15.7487763]
[1749060916252,15.7487763,156.02,155.98,15.7487763]
[1749060916753,15.7487763,155.99,155.94,60.39842516]
[1749060917325,15.7487763,155.99,155.95,15.7487763]
[1749060917532,15.7487763,155.99,155.94,60.39842516]
[1749060918242,15.7487763,155.99,155.95,15.7487763]
[1749060920532,15.7487763,155.99,155.94,15.7487763]
[1749060922255,32.4529,156.03,155.93,18.933972]
[1749060922256,15.7487763,155.98,155.93,18.933972]
[1749060922434,15.7487763,155.98,155.94,15.7487763]
[1749060922631,15.7487763,155.99,155.94,15.7487763]
[1749060924228,15.7487763,155.98,155.94,15.7487763]
[1749060925146,15.7487763,155.99,155.94,15.7487763]
[1749060926368,15.7487763,156.0,155.95,15.7487763]
[1749060927942,148.1,156.02,155.97,15.7487763]
[1749060928260,1.5182,156.06,156.01,15.7487763]
[1749060928637,17.2669763,156.06,156.01,15.7487763]
[1749060928965,15.7487763,156.05,156.01,15.7487763]
[1749060929270,15.7487763,156.05,156.0,15.7487763]
[1749060930538,15.7487763,156.05,156.01,15.7487763]
[1749060932170,15.7487763,156.04,156.0,15.7487763]
[1749060933351,15.7487763,156.04,155.99,15.7487763]
[1749060933556,15.7487763,156.02,155.97,34.39842516]
[1749060934165,15.7487763,156.02,155.98,15.7487763]
[1749060935658,148.1,156.05,156.0,15.7487763]
[1749060935968,148.1,156.05,156.01,15.7487763]
[1749060936176,163.8487763,156.05,156.01,15.7487763]
[1749060937473,148.1,156.05,156.01,15.7487763]
[1749060937852,148.1,156.05,156.02,15.7487763]
[1749060938488,15.7487763,156.07,156.03,15.7487763]
[1749060938781,15.7487763,156.07,156.02,15.7487763]
[1749060939461,15.7487763,156.06,156.02,15.7487763]
[1749060944059,15.7487763,156.06,156.01,15.7487763]
[1749060944903,15.7487763,156.03,155.94,1.5599]
[1749060945190,15.7487763,156.03,155.99,34.39842516]
[1749060946586,15.7487763,156.03,155.97,26.0]
[1749060946779,15.7487763,156.0,155.96,18.64964886]
[1749060946963,15.7487763,156.0,155.93,6.1232]
[1749060946964,15.7487763,155.98,155.93,18.79181043]
[1749060947286,15.7487763,155.98,155.94,15.7487763]
[1749060947497,0.14216157,156.04,155.94,15.7487763]
[1749060947498,15.7487763,155.99,155.94,15.7487763]
[1749060947656,15.7487763,155.99,155.95,15.7487763]
[1749060947855,15.7487763,156.0,155.95,15.7487763]
[1749060948956,15.7487763,156.0,155.96,15.7487763]
[1749060949380,15.7487763,156.0,155.95,15.7487763]
[1749060949865,15.7487763,155.98,155.94,15.7487763]
[1749060951582,15.7487763,155.99,155.94,15.7487763]
[1749060951881,26.0,156.02,155.93,18.79181043]
[1749060951882,15.7487763,156.0,155.95,15.7487763]
[1749060952469,15.7487763,156.0,155.96,15.7487763]
[1749060952863,15.7487763,156.0,155.95,15.7487763]
[1749060953362,15.7487763,155.99,155.95,15.7487763]
[1749060954573,15.7487763,156.0,155.95,15.7487763]
[1749060954885,15.7487763,156.0,155.94,0.14216157]
[1749060955090,15.7487763,155.99,155.95,15.7487763]
[1749060955985,26.14216157,156.04,155.95,15.7487763]
[1749060956185,15.7487763,156.0,155.95,15.7487763]
[1749060959172,15.7487763,156.01,155.97,15.7487763]
[1749060959581,15.7487763,156.01,155.96,34.39842516]
[1749060960384,148.1,156.03,155.97,15.7487763]
[1749060960385,15.7487763,156.02,155.97,15.7487763]
[1749060961497,163.8487763,156.03,155.99,15.7487763]
[1749060961697,15.7487763,156.04,155.99,15.7487763]
[1749060962385,15.7487763,156.04,156.0,15.7487763]
[1749060963406,17.3762763,156.05,156.0,15.7487763]
[1749060964889,17.3762763,156.05,156.01,15.7487763]
[1749060965076,15.7487763,156.04,156.0,15.7487763]
[1749060965275,15.7487763,156.02,155.97,18.64964886]
[1749060965479,15.7487763,156.02,155.98,15.7487763]
[1749060965668,15.7487763,156.03,155.99,34.39842516]
[1749060965873,15.7487763,156.04,155.99,15.7487763]
[1749060966479,15.7487763,156.03,155.98,15.7487763]
[1749060966799,15.7487763,156.02,155.98,15.7487763]
[1749060968474,15.7487763,156.01,155.97,34.39842516]
[1749060968670,15.7487763,156.03,155.99,18.64964886]
[1749060968982,15.7487763,156.04,155.99,15.7487763]
[1749060972105,1.6275,156.05,155.99,15.7487763]
[1749060972403,15.7487763,156.04,155.99,15.7487763]
[1749060974892,15.7487763,156.02,155.98,15.7487763]
[1749060975095,15.7487763,156.02,155.97,15.7487763]
[1749060977499,15.7487763,156.01,155.96,34.6827483]
[1749060977683,27.6275,156.05,155.95,41.7487763]
[1749060977684,15.7487763,156.0,155.95,41.7487763]
[1749060977883,15.7487763,155.99,155.95,26.0]
[1749060978796,15.7487763,155.99,155.95,41.7487763]
[1749060981096,15.7487763,155.99,155.95,15.7487763]
[1749060982798,15.7487763,156.0,155.96,15.7487763]
[1749060984107,148.1,156.04,155.96,15.7487763]
[1749060984289,148.1,156.04,156.01,15.7487763]
[1749060984606,148.1,156.04,156.0,15.7487763]
[1749060984905,163.8487763,156.04,156.0,15.7487763]
[1749060985107,15.7487763,156.02,155.98,15.7487763]
[1749060985793,15.7487763,156.01,155.97,15.7487763]
[1749060985996,148.1,156.04,155.97,15.7487763]
[1749060985997,15.7487763,156.02,155.97,15.7487763]
[1749060986419,15.7487763,156.02,155.98,15.7487763]
[1749060987311,15.7487763,156.03,155.99,15.7487763]
[1749060987894,163.8487763,156.04,156.0,15.7487763]
[1749060988902,148.1,156.04,156.0,15.7487763]
[1749060989809,163.8487763,156.04,156.0,15.7487763]
[1749060990406,163.8487763,156.04,155.99,15.7487763]
[1749060990407,15.7487763,156.03,155.99,15.7487763]
[1749060990614,163.8487763,156.04,155.99,15.7487763]
[1749060990990,163.8487763,156.04,156.0,15.7487763]
[1749060994089,163.8487763,156.04,155.99,15.7487763]
[1749060994390,15.7487763,156.03,155.99,15.7487763]
[1749060999011,148.1,156.04,156.01,15.7487763]
[1749060999206,15.7487763,156.05,156.01,15.7487763]
[1749060999520,15.7487763,156.05,155.99,44.64964886]
[1749060999521,15.7487763,156.06,156.02,15.7487763]
[1749060999724,15.7487763,156.08,156.04,15.7487763]
[1749060999941,1.5096,156.09,156.05,15.7487763]
[1749061000905,22.2175763,156.1,156.05,15.7487763]
[1749061002215,15.7487763,156.11,156.06,15.7487763]
[1749061002807,15.7487763,156.11,156.05,26.0]
[1749061003033,15.7487763,156.1,156.06,15.7487763]
[1749061004918,15.7487763,156.11,156.07,15.7487763]
[1749061006743,1.546,156.13,156.06,15.7487763]
[1749061006744,15.7487763,156.1,156.06,15.7487763]
[1749061007239,1.546,156.13,156.05,26.0]
[1749061007240,15.7487763,156.09,156.05,26.0]
[1749061007448,1.546,156.13,156.05,26.0]
[1749061007449,15.7487763,156.08,156.05,26.0]
[1749061007922,15.7487763,156.06,156.02,15.7487763]
[1749061008120,15.7487763,156.06,156.03,26.0]
[1749061009143,15.7487763,156.07,156.03,41.7487763]
[1749061009447,15.7487763,156.08,156.04,15.7487763]
[1749061011521,15.7487763,156.07,156.03,41.7487763]
[1749061011723,15.7487763,156.07,156.03,26.0]
[1749061011930,15.7487763,156.07,156.03,41.7487763]
[1749061015154,15.7487763,156.08,156.04,15.7487763]
[1749061015946,15.7487763,156.09,156.05,15.7487763]
[1749061016518,1.68816157,156.13,156.07,15.7487763]
[1749061016824,15.7487763,156.11,156.07,15.7487763]
[1749061017144,15.7487763,156.1,156.06,15.7487763]
[1749061017746,15.7487763,156.1,156.05,15.7487763]
[1749061019330,15.7487763,156.1,156.06,15.7487763]
[1749061020752,15.7487763,156.1,156.05,15.7487763]
[1749061021454,15.7487763,156.1,156.06,15.7487763]
[1749061021959,1.546,156.13,156.07,15.7487763]
[1749061022249,15.7487763,156.11,156.07,15.7487763]
[1749061024628,1.546,156.13,156.09,15.7487763]
[1749061024629,17.2947763,156.13,156.09,15.7487763]
[1749061024949,21.9532763,156.14,156.1,15.7487763]
[1749061025146,15.7487763,156.13,156.09,15.7487763]
[1749061025331,15.7487763,156.13,156.08,15.7487763]
[1749061026337,15.7487763,156.13,156.09,15.7487763]
[1749061027136,15.7487763,156.13,156.08,15.7487763]
[1749061027642,15.7487763,156.13,156.09,15.7487763]
[1749061028257,21.9532763,156.14,156.09,15.7487763]
[1749061029561,6.2045,156.14,156.09,15.7487763]
[1749061029868,15.7487763,156.14,156.1,15.7487763]
[1749061030356,15.7487763,156.16,156.11,15.7487763]
[1749061030555,1.66136157,156.17,156.09,26.0]
[1749061030556,17.2679763,156.17,156.13,15.7487763]
[1749061030758,163.8487763,156.19,156.15,15.7487763]
[1749061031153,148.1,156.19,156.14,15.7487763]
[1749061031341,148.1,156.19,156.15,15.7487763]
[1749061031537,163.8487763,156.19,156.15,15.7487763]
[1749061031740,15.7487763,156.18,156.13,41.7487763]
[1749061031939,15.7487763,156.17,156.13,26.0]
[1749061032544,15.7487763,156.16,156.13,26.0]
[1749061032765,15.7487763,156.14,156.07,0.14216157]
[1749061033066,15.7487763,156.13,156.1,26.0]
[1749061033872,1.6495,156.15,156.11,15.7487763]
[1749061034071,17.3982763,156.15,156.11,15.7487763]
[1749061034368,6.3749,156.17,156.12,15.7487763]
[1749061034558,15.7487763,156.18,156.13,15.7487763]
[1749061035946,15.7487763,156.18,156.14,15.7487763]
[1749061037371,15.7487763,156.18,156.13,15.7487763]
[1749061038179,1.601,156.19,156.13,15.7487763]
[1749061038344,15.7487763,156.18,156.13,15.7487763]
[1749061039056,1.601,156.19,156.13,15.7487763]
[1749061039257,15.7487763,156.18,156.14,15.7487763]
[1749061039751,15.7487763,156.18,156.13,15.7487763]
[1749061043387,15.7487763,156.14,156.09,15.7487763]
[1749061043691,15.7487763,156.13,156.09,41.7487763]
[1749061043985,15.7487763,156.14,156.09,41.7487763]
[1749061044189,15.7487763,156.14,156.1,15.7487763]
[1749061044558,15.7487763,156.14,156.09,41.7487763]
[1749061044953,15.7487763,156.14,156.1,15.7487763]
[1749061046970,15.7487763,156.13,156.09,41.7487763]
[1749061047680,15.7487763,156.14,156.09,41.7487763]
[1749061052171,0.28432314,156.16,156.05,1.5085]
[1749061052172,15.7487763,156.12,156.05,1.5085]
[1749061052378,15.7487763,156.08,156.03,18.64964886]
[1749061052577,15.7487763,156.08,156.04,15.7487763]
[1749061052883,15.7487763,156.09,156.06,26.0]
[1749061053084,15.7487763,156.11,156.06,15.7487763]
[1749061053493,15.7487763,156.1,156.06,41.7487763]
[1749061056393,1.6319,156.13,156.08,15.7487763]
[1749061056601,17.3806763,156.13,156.08,15.7487763]
[1749061057076,22.1759763,156.15,156.11,15.7487763]
[1749061057267,15.7487763,156.15,156.11,15.7487763]
[1749061059098,15.7487763,156.15,156.1,41.7487763]
[1749061060398,17.4111763,156.17,156.12,15.7487763]
[1749061060604,6.6654,156.19,156.14,15.7487763]
[1749061060768,22.4141763,156.19,156.15,15.7487763]
[1749061060967,15.7487763,156.18,156.14,15.7487763]
[1749061062774,6.6654,156.19,156.14,15.7487763]
[1749061062976,15.7487763,156.18,156.14,15.7487763]
[1749061065704,15.7487763,156.18,156.11,23.47929824]
[1749061065705,15.7487763,156.16,156.11,4.5459695]
[1749061065876,15.7487763,156.15,156.12,26.0]
[1749061066204,15.7487763,156.16,156.12,41.7487763]
[1749061067977,15.7487763,156.16,156.12,15.7487763]
[1749061069103,15.7487763,156.16,156.13,26.0]
[1749061069289,15.7487763,156.17,156.13,41.7487763]
[1749061072111,15.7487763,156.17,156.12,18.95074366]
[1749061072310,15.7487763,156.16,156.12,15.7487763]
[1749061073005,15.7487763,156.16,156.13,26.0]
[1749061073211,15.7487763,156.16,156.12,18.93839157]
[1749061074698,15.7487763,156.17,156.12,18.93839157]
[1749061075809,15.7487763,156.17,156.13,15.7487763]
[1749061077006,1.5514,156.21,156.14,41.7487763]
[1749061077007,15.7487763,156.18,156.14,41.7487763]
[1749061078885,15.7487763,156.18,156.17,26.0]
[1749061080106,0.28432314,156.17,156.14,26.0]
[1749061080284,15.7487763,156.15,156.14,26.0]
[1749061080485,0.28432314,156.17,156.14,26.0]
[1749061080486,15.7487763,156.16,156.14,26.0]
[1749061080803,15.7487763,156.15,156.12,29.12236573]
[1749061081108,15.7487763,156.16,156.14,26.0]
[1749061082817,21.9630763,156.18,156.16,26.0]
[1749061083021,6.2143,156.18,156.17,26.0]
[1749061083998,15.7487763,156.19,156.18,26.0]
[1749061084202,16.03309944,156.2,156.18,26.0]
[1749061084519,15.7487763,156.19,156.18,26.0]
[1749061084908,15.7487763,156.19,156.14,15.7487763]
[1749061085105,16.03309944,156.2,156.17,26.0]
[1749061089409,0.28432314,156.2,156.17,41.7487763]
[1749061089624,0.28432314,156.2,156.17,15.7487763]
[1749061090229,1.69356157,156.21,156.18,15.7487763]
[1749061090431,0.28432314,156.21,156.19,15.7487763]
[1749061090802,0.28432314,156.21,156.18,15.7487763]
[1749061091504,0.28432314,156.21,156.17,15.7487763]
[1749061091726,16.03309944,156.2,156.16,41.7487763]
[1749061091933,0.28432314,156.2,156.17,15.7487763]
[1749061092222,0.28432314,156.2,156.16,41.7487763]
[1749061092622,15.7487763,156.17,156.11,4.55114775]
[1749061092830,17.2999763,156.13,156.08,15.7487763]
[1749061093134,16.03309944,156.12,156.08,15.7487763]
[1749061093431,15.89093787,156.12,156.08,41.7487763]
[1749061095329,0.14216157,156.12,156.09,15.7487763]
[1749061097352,0.14216157,156.14,156.1,15.7487763]
[1749061097643,0.28432314,156.15,156.11,15.7487763]
[1749061097644,15.7487763,156.15,156.11,15.7487763]
[1749061097825,0.14216157,156.15,156.12,15.7487763]
[1749061098438,0.14216157,156.15,156.08,26.0]
[1749061098612,15.89093787,156.15,156.11,15.7487763]
[1749061100247,0.14216157,156.15,156.11,15.7487763]
[1749061102437,0.14216157,156.15,156.12,15.7487763]
[1749061104343,0.14216157,156.15,156.13,15.7487763]
[1749061104521,0.14216157,156.16,156.14,15.7487763]
[1749061105038,0.14216157,156.16,156.13,15.7487763]
[1749061106037,0.14216157,156.16,156.12,15.7487763]
[1749061106949,0.14216157,156.16,156.13,15.7487763]
[1749061108639,0.14216157,156.16,156.11,26.0]
[1749061108640,16.03309944,156.16,156.12,15.7487763]
[1749061110737,15.7487763,156.15,156.11,41.7487763]
[1749061110953,0.14216157,156.12,156.09,15.7487763]
[1749061111247,0.14216157,156.12,156.06,15.7487763]
[1749061111248,0.28432314,156.1,156.06,15.7487763]
[1749061111447,0.28432314,156.1,156.06,41.7487763]
[1749061112141,0.28432314,156.1,156.06,15.7487763]
[1749061113848,0.28432314,156.1,156.04,26.0]
[1749061114047,0.28432314,156.1,156.06,15.7487763]
[1749061115132,0.28432314,156.1,156.07,15.7487763]
[1749061118430,0.28432314,156.1,156.06,15.7487763]
[1749061119257,0.28432314,156.1,156.07,15.7487763]
[1749061119434,1.5201,156.11,156.08,15.7487763]
[1749061119633,0.28432314,156.12,156.09,15.7487763]
[1749061122456,16.03309944,156.12,156.08,15.7487763]
[1749061124158,16.03309944,156.12,156.07,26.0]
[1749061124159,0.28432314,156.1,156.07,15.7487763]
[1749061124659,0.28432314,156.1,156.08,15.7487763]
[1749061125572,0.14216157,156.1,156.08,15.7487763]
[1749061131068,0.14216157,156.13,156.09,15.7487763]
[1749061131259,0.14216157,156.13,156.07,26.0]
[1749061131461,34.39842516,156.14,156.1,15.7487763]
[1749061131667,34.39842516,156.14,156.09,15.7487763]
[1749061131668,0.14216157,156.11,156.09,15.7487763]
[1749061131978,0.28432314,156.11,156.09,15.7487763]
[1749061132359,0.28432314,156.11,156.08,15.7487763]
[1749061137860,0.28432314,156.11,156.07,26.0]
[1749061138188,0.28432314,156.11,156.08,15.7487763]
[1749061140258,0.28432314,156.09,156.03,3.16339113]
[1749061140460,16.03309944,156.07,156.03,15.7487763]
[1749061141786,16.03309944,156.07,156.0,5.17619173]
[1749061141981,16.03309944,156.07,155.99,6.3186]
[1749061141982,0.14216157,156.05,156.02,15.7487763]
[1749061142392,15.89093787,156.05,156.01,15.7487763]
[1749061142695,0.14216157,156.05,156.03,15.7487763]
[1749061142894,6.4663,156.09,156.04,15.7487763]
[1749061143069,6.4663,156.09,156.0,41.7487763]
[1749061143070,1.66786157,156.1,156.08,15.7487763]
[1749061143275,1.66786157,156.1,156.0,46.84799482]
[1749061143276,0.28432314,156.09,156.07,15.7487763]
[1749061143578,1.66786157,156.1,156.07,15.7487763]
[1749061143894,0.14216157,156.12,156.08,15.7487763]
[1749061144084,0.56864628,156.12,156.08,15.7487763]
[1749061144395,0.14216157,156.12,156.08,15.7487763]
[1749061144883,0.56864628,156.12,156.09,15.7487763]
[1749061145699,0.28432314,156.12,156.09,15.7487763]
[1749061145871,0.56864628,156.12,156.09,15.7487763]
[1749061147259,0.56864628,156.12,156.1,15.7487763]
[1749061148304,0.28432314,156.12,156.11,15.7487763]
[1749061148466,1.5257,156.14,156.11,15.7487763]
[1749061148667,0.14216157,156.15,156.12,15.7487763]
[1749061148999,0.56864628,156.15,156.12,15.7487763]
[1749061149489,0.14216157,156.15,156.12,15.7487763]
[1749061149703,0.56864628,156.15,156.12,15.7487763]
[1749061150486,26.28432314,156.15,156.14,15.7487763]
[1749061150676,0.14216157,156.16,156.14,15.7487763]
[1749061150875,0.14216157,156.16,156.15,15.7487763]
[1749061151490,26.42648471,156.17,156.15,15.7487763]
[1749061151686,0.56864628,156.17,156.15,15.7487763]
[1749061153997,0.28432314,156.17,156.15,15.7487763]
[1749061154198,3.33959308,156.2,156.16,15.7487763]
[1749061154404,0.14216157,156.2,156.18,15.7487763]
[1749061154904,0.56864628,156.2,156.18,15.7487763]
[1749061155390,0.14216157,156.2,156.18,15.7487763]
[1749061155595,6.0161,156.21,156.18,15.7487763]
[1749061155969,0.14216157,156.2,156.18,15.7487763]
[1749061156171,0.28432314,156.2,156.18,15.7487763]
[1749061156398,0.28432314,156.2,156.19,15.7487763]
[1749061160196,99.0336963,156.39,156.19,15.7487763]
[1749061160197,19.21829514,156.25,156.19,15.7487763]
[1749061160409,19.21829514,156.25,156.21,15.7487763]
[1749061160594,22.5567035,156.25,156.22,15.7487763]
[1749061160789,0.14216157,156.25,156.24,15.7487763]
[1749061161307,0.14216157,156.27,156.24,15.7487763]
[1749061161516,0.56864628,156.27,156.24,15.7487763]
[1749061162000,0.14216157,156.27,156.25,15.7487763]
[1749061162183,0.56864628,156.27,156.25,15.7487763]
[1749061162386,0.14216157,156.27,156.25,15.7487763]
[1749061162604,0.56864628,156.27,156.26,15.7487763]
[1749061163183,0.56864628,156.27,156.24,15.7487763]
[1749061163407,0.28432314,156.27,156.24,15.7487763]
[1749061163794,0.56864628,156.27,156.24,15.7487763]
[1749061165423,0.56864628,156.27,156.25,15.7487763]
[1749061170226,0.56864628,156.27,156.26,15.7487763]
[1749061171125,0.56864628,156.27,156.25,15.7487763]
[1749061171617,0.56864628,156.27,156.18,14.57338046]
[1749061171800,26.56864628,156.27,156.25,15.7487763]
[1749061172001,26.28432314,156.26,156.25,15.7487763]
[1749061172210,0.28432314,156.26,156.25,15.7487763]
[1749061174414,3.33787582,156.3,156.25,15.7487763]
[1749061174617,18.79181043,156.31,156.29,15.7487763]
[1749061174818,0.28432314,156.31,156.29,15.7487763]
[1749061175013,0.14216157,156.31,156.29,15.7487763]
[1749061175622,0.56864628,156.31,156.29,15.7487763]
[1749061177141,0.56864628,156.31,156.28,15.7487763]
[1749061177544,0.28432314,156.29,156.27,15.7487763]
[1749061181434,16.31742258,156.29,156.18,14.47904913]
[1749061181615,16.31742258,156.29,156.25,15.7487763]
[1749061182745,0.28432314,156.27,156.24,15.7487763]
[1749061182918,16.31742258,156.27,156.22,15.7487763]
[1749061183116,0.56864628,156.27,156.23,15.7487763]
[1749061183814,0.56864628,156.27,156.24,15.7487763]
[1749061184918,0.28432314,156.25,156.23,15.7487763]
[1749061185130,0.28432314,156.23,156.2,15.7487763]
[1749061185342,0.28432314,156.23,156.14,6.2402]
[1749061185343,0.28432314,156.21,156.14,11.04283352]
[1749061185549,0.28432314,156.21,156.19,15.7487763]
[1749061186039,0.14216157,156.21,156.2,15.7487763]
[1749061186728,0.14216157,156.24,156.2,15.7487763]
[1749061187048,0.56864628,156.24,156.21,15.7487763]
[1749061187657,0.56864628,156.24,156.16,41.7487763]
[1749061187954,0.56864628,156.24,156.21,15.7487763]
[1749061189013,19.21829514,156.24,156.21,15.7487763]
[1749061189618,0.56864628,156.24,156.22,15.7487763]
[1749061190639,0.56864628,156.24,156.21,15.7487763]
[1749061192641,0.28432314,156.24,156.22,15.7487763]
[1749061193027,0.28432314,156.24,156.23,15.7487763]
[1749061194925,0.56864628,156.26,156.23,15.7487763]